[Event "Czech Youth U10 Boys 2024"]
[Site "Kouty nad Desnou"]
[Date "2024.03.12"]
[Round "5.5"]
[White "Hlavacek, Pavel"]
[Black "Bukovskij, Dmitri"]
[Result "1/2-1/2"]
[ECO "D58"]
[WhiteElo "1945"]
[BlackElo "1665"]
[Annotator "RC"]
[PlyCount "90"]
[EventDate "2024.03.10"]
[EventType "swiss"]
[EventCountry "CZE"]
[SourceTitle "playchess.com"]
[Source "ChessBase"]
[SourceQuality "1"]
[TimeControl "40/5400+30:1800+30"]

1. d4 {[%emt 0:00:01]} d5 {[%emt 0:00:03]} 2. c4 {[%emt 0:00:10]} e6 {[%emt 0:00:10]} 3. Nc3 {[%emt 0:00:09]} Nf6 {[%emt 0:00:18]} 4. Bg5 {[%emt 0:00:33]} Be7 {[%emt 0:00:33]} 5. Nf3 {[%emt 0:00:28]} O-O {[%emt 0:00:35]} 6. e3 h6 {[%emt 0:00:17]} 7. Bh4 {[%emt 0:00:51]} b6 {[%emt 0:01:42]} 8. cxd5 {[%emt 0:00:28]} exd5 {[%emt 0:00:15]} 9. Bd3 {[%emt 0:00:15]} Bb7 {[%emt 0:00:12]} 10. O-O {[%emt 0:01:46]} Nbd7 {[%emt 0:01:30]} 11. Rc1 {[%emt 0:03:02]} c5 {[%emt 0:01:47]} 12. Re1 {[%emt 0:01:35]} c4 {[%emt 0:02:44]} 13. Bb1 {[%emt 0:00:36]} Re8 {[%emt 0:22:18]} 14. Qc2 {[%emt 0:01:19]} Nf8 {[%emt 0:19:57]} 15. Ne5 {[%emt 0:02:10]} N6d7 {[%emt 0:05:27]} 16. Bg3 {[%emt 0:01:27]} Nxe5 {[%emt 0:00:48]} 17. Bxe5 {[%emt 0:00:22]} Bd6 {[%emt 0:00:51]} 18. Bxd6 {[%emt 0:01:38]} Qxd6 {[%emt 0:00:26]} 19. Nb5 {[%emt 0:01:22]} Qc6 {[%emt 0:04:52]} 20. Nc3 {[%emt 0:00:55]} Qf6 {[%emt 0:09:45]} 21. Qf5 {[%emt 0:01:04]} Qe6 {[%emt 0:04:14]} 22. Qxe6 {[%emt 0:02:05]} Nxe6 {[%emt 0:00:16]} 23. Nb5 {[%emt 0:00:29]} Bc6 {[%emt 0:01:39]} 24. Nc3 {[%emt 0:00:22]} b5 {[%emt 0:00:36]} 25. Ne2 {[%emt 0:00:55]} b4 {[%emt 0:02:47]} 26. Bf5 {[%emt 0:00:41]} g6 27. Bxe6 {[%emt 0:00:11]} Rxe6 {[%emt 0:05:34]} 28. Nf4 {[%emt 0:00:15]} Re7 {[%emt 0:01:13]} 29. e4 {[%emt 0:01:20]} Rae8 {[%emt 0:00:16]} 30. e5 {[%emt 0:00:43]} Kg7 {[%emt 0:03:38]} 31. Re3 {[%emt 0:04:26]} f6 {[%emt 0:03:31]} 32. exf6+ {[%emt 0:02:07]} Kxf6 {[%emt 0:00:19]} 33. Rce1 {[%emt 0:00:12]} Rxe3 {[%emt 0:00:35]} 34. fxe3 {[%emt 0:00:09]} a5 {[%emt 0:01:14]} 35. Kf2 {[%emt 0:00:12]} g5 {[%emt 0:02:38]} 36. Nh5+ {[%emt 0:00:50]} Kg6 {[%emt 0:00:10]} 37. Ng3 {[%emt 0:00:09]} h5 {[%emt 0:00:11]} 38. Nf1 {[%emt 0:01:12]} Rf8+ {[%emt 0:00:23]} 39. Kg1 {[%emt 0:00:24]} a4 {[%emt 0:01:01]} 40. Rc1 {[%emt 0:00:36]} Re8 {[%emt 0:02:23]} 41. Kf2 {[%emt 0:30:34]} Bd7 {[%emt 0:30:26]} 42. h3 {[%emt 0:00:23]} Bf5 {[%emt 0:00:11]} 43. Nh2 {[%emt 0:01:03]} Be4 {[%emt 0:00:14]} 44. Nf3 {[%emt 0:00:17]} Bxf3 {[%emt 0:00:19]} 45. gxf3 {[%emt 0:00:11]} Kf5 {[%emt 0:00:09]} 1/2-1/2

[Event "Czech Youth U10 Boys 2024"]
[Site "Kouty nad Desnou"]
[Date "2024.03.12"]
[Round "5.6"]
[White "Rybar, Vojta"]
[Black "Vratny, Vojtech"]
[Result "0-1"]
[ECO "B15"]
[WhiteElo "1435"]
[BlackElo "1566"]
[Annotator "NA RC"]
[PlyCount "114"]
[EventDate "2024.03.10"]
[EventType "swiss"]
[EventCountry "CZE"]
[SourceTitle "playchess.com"]
[Source "ChessBase"]
[SourceQuality "1"]
[TimeControl "40/5400+30:1800+30"]

1. e4 {[%emt 0:00:04]} c6 {[%emt 0:00:23]} 2. d4 {[%emt 0:00:09]} d5 {[%emt 0:00:19]} 3. Nc3 {[%emt 0:00:24]} dxe4 {[%emt 0:00:24]} 4. Nxe4 {[%emt 0:01:40]} Nf6 {[%emt 0:00:26]} 5. Nxf6+ {[%emt 0:02:32]} exf6 {[%emt 0:00:45]} 6. Nf3 {[%emt 0:04:00]} Bd6 {[%emt 0:01:10]} 7. Bd3 {[%emt 0:01:49]} O-O {[%emt 0:00:46]} 8. O-O {[%emt 0:05:37]} Bg4 {[%emt 0:00:35]} 9. Be2 {[%emt 0:07:20]} Qc7 {[%emt 0:00:51]} 10. h3 {[%emt 0:00:27]} Bh5 {[%emt 0:00:40]} 11. Re1 {[%emt 0:02:45]} Nd7 {[%emt 0:00:45]} 12. c3 {[%emt 0:04:05]} Bg6 {[%emt 0:01:21]} 13. Bd3 {[%emt 0:00:11]} Bxd3 {[%emt 0:00:31]} 14. Qxd3 {[%emt 0:00:08]} Rfe8 {[%emt 0:00:50]} 15. Bd2 {[%emt 0:01:27]} Nb6 {[%emt 0:01:00]} 16. c4 {[%emt 0:02:02]} Bf4 {[%emt 0:02:22]} 17. Bxf4 {[%emt 0:04:01]} Qxf4 {[%emt 0:00:22]} 18. Qb3 {[%emt 0:02:13]} Qc7 {[%emt 0:01:45]} 19. a4 {[%emt 0:03:04]} Nd7 {[%emt 0:01:11]} 20. Re3 {[%emt 0:00:49]} Rxe3 {[%emt 0:00:52]} 21. Qxe3 {[%emt 0:01:12]} Nb6 {[%emt 0:00:46]} 22. Re1 {[%emt 0:01:00]} h6 {[%emt 0:01:27]} 23. b3 {[%emt 0:00:50]} a5 {[%emt 0:01:52]} 24. Qe7 {[%emt 0:00:37]} Qxe7 {[%emt 0:01:01]} 25. Rxe7 {[%emt 0:00:08]} Rb8 {[%emt 0:00:34]} 26. Nd2 {[%emt 0:00:32]} Kf8 {[%emt 0:01:09]} 27. Rc7 {[%emt 0:00:35]} Na8 {[%emt 0:01:42]} 28. Rd7 {[%emt 0:00:56]} Ke8 {[%emt 0:00:52]} 29. Rd6 {[%emt 0:00:12]} Rd8 {[%emt 0:01:24]} 30. Rxd8+ {[%emt 0:00:18]} Kxd8 {[%emt 0:00:11]} 31. Ne4 {[%emt 0:00:11]} Ke7 {[%emt 0:01:31]} 32. Kf1 {[%emt 0:00:28]} f5 {[%emt 0:00:46]} 33. Ng3 {[%emt 0:01:05]} g6 {[%emt 0:00:52]} 34. Ke2 {[%emt 0:00:17]} Ke6 {[%emt 0:00:57]} 35. Kf3 {[%emt 0:01:21]} Nc7 {[%emt 0:00:50]} 36. Ne2 {[%emt 0:00:25]} b5 {[%emt 0:00:47]} 37. Nc3 {[%emt 0:00:40]} b4 {[%emt 0:01:08]} 38. Ne2 {[%emt 0:00:25]} g5 {[%emt 0:00:54]} 39. Kg3 {[%emt 0:00:36]} Ne8 {[%emt 0:02:23]} 40. f4 {[%emt 0:00:30]} f6 {[%emt 0:00:27]} 41. Nc1 {[%emt 0:30:48]} Nd6 {[%emt 0:30:33]} 42. Nd3 {[%emt 0:00:31]} Ne4+ {[%emt 0:01:32]} 43. Kh2 {[%emt 0:00:53]} Nd2 {[%emt 0:01:42]} 44. Nc5+ {[%emt 0:00:32]} Ke7 {[%emt 0:00:24]} 45. g3 {[%emt 0:00:23]} Nf3+ {[%emt 0:01:50]} 46. Kg2 {[%emt 0:00:38]} Nxd4 {[%emt 0:00:22]} 47. Kf2 {[%emt 0:00:27]} gxf4 {[%emt 0:01:05]} 48. gxf4 {[%emt 0:00:10]} Nc2 {[%emt 0:01:05]} 49. Nb7 {[%emt 0:00:48]} Kd7 {[%emt 0:00:49]} 50. Nxa5 {[%emt 0:00:17]} Kc7 {[%emt 0:00:22]} 51. c5 {[%emt 0:00:26]} Na3 {[%emt 0:00:39]} 52. Nc4 {[%emt 0:00:27]} Nxc4 {[%emt 0:00:12]} 53. bxc4 {[%emt 0:00:04]} Kb7 {[%emt 0:00:12]} 54. Ke2 {[%emt 0:00:09]} Ka6 {[%emt 0:00:17]} 55. Kd2 {[%emt 0:00:32]} Ka5 {[%emt 0:00:09]} 56. Kc2 {[%emt 0:00:12]} Kxa4 {[%emt 0:00:14]} 57. Kb2 {[%emt 0:00:05]} b3 {[%emt 0:00:11]} 0-1

[Event "Czech Youth U10 Boys 2024"]
[Site "Kouty nad Desnou"]
[Date "2024.03.12"]
[Round "5.7"]
[White "Zelenka, Tomas"]
[Black "Menkov, Ivan"]
[Result "1-0"]
[ECO "C49"]
[WhiteElo "1566"]
[BlackElo "1524"]
[Annotator "NA RC"]
[PlyCount "105"]
[EventDate "2024.03.10"]
[EventType "swiss"]
[EventCountry "CZE"]
[SourceTitle "playchess.com"]
[Source "ChessBase"]
[SourceQuality "1"]
[TimeControl "40/5400+30:1800+30"]

1. e4 {[%emt 0:00:05]} e5 {[%emt 0:00:07]} 2. Nf3 {[%emt 0:00:11]} Nc6 {[%emt 0:00:05]} 3. Nc3 {[%emt 0:00:17]} Nf6 {[%emt 0:00:07]} 4. Bb5 {[%emt 0:00:11]} Bb4 {[%emt 0:00:08]} 5. O-O {[%emt 0:00:20]} O-O {[%emt 0:00:07]} 6. d3 {[%emt 0:00:22]} d6 {[%emt 0:00:08]} 7. Bg5 {[%emt 0:00:27]} Bxc3 {[%emt 0:00:13]} 8. bxc3 {[%emt 0:00:15]} h6 {[%emt 0:00:09]} 9. Bh4 {[%emt 0:00:49]} g5 {[%emt 0:01:30]} 10. Bg3 {[%emt 0:00:30]} Nh5 {[%emt 0:00:28]} 11. Nxe5 {[%emt 0:20:41]} Nxg3 {[%emt 0:00:13]} 12. Nxc6 {[%emt 0:00:12]} bxc6 {[%emt 0:00:15]} 13. Bxc6 {[%emt 0:00:25]} Nxf1 {[%emt 0:00:52]} 14. Bxa8 Nxh2 {[%emt 0:01:31]} 15. Kxh2 {[%emt 0:00:29]} Qf6 {[%emt 0:00:44]} 16. Qd2 {[%emt 0:03:55]} Qg6 {[%emt 0:02:40]} 17. Rh1 {[%emt 0:03:43]} h5 {[%emt 0:03:22]} 18. Kg1 {[%emt 0:01:53]} Kg7 {[%emt 0:00:21]} 19. Qe2 {[%emt 0:04:43]} Bg4 {[%emt 0:00:33]} 20. f3 {[%emt 0:00:38]} Bxf3 {[%emt 0:01:54]} 21. Qxf3 {[%emt 0:00:28]} g4 {[%emt 0:00:06]} 22. Qf5 {[%emt 0:00:56]} Qxf5 {[%emt 0:00:25]} 23. exf5 {[%emt 0:00:16]} Rxa8 {[%emt 0:00:07]} 24. Rxh5 {[%emt 0:00:25]} Kf6 {[%emt 0:00:31]} 25. Rh7 {[%emt 0:00:52]} Rf8 {[%emt 0:00:23]} 26. Rh5 {[%emt 0:01:39]} Rg8 {[%emt 0:00:05]} 27. Kf2 {[%emt 0:02:05]} Rg5 {[%emt 0:00:35]} 28. Rxg5 {[%emt 0:00:19]} Kxg5 {[%emt 0:00:06]} 29. Ke3 {[%emt 0:02:19]} Kxf5 {[%emt 0:00:07]} 30. d4 {[%emt 0:01:41]} Kg5 {[%emt 0:00:51]} 31. g3 {[%emt 0:09:30]} d5 {[%emt 0:00:42]} 32. a4 {[%emt 0:02:10]} a5 {[%emt 0:00:10]} 33. Kf2 {[%emt 0:00:11]} f5 {[%emt 0:00:25]} 34. Ke3 {[%emt 0:00:40]} c6 {[%emt 0:00:07]} 35. c4 {[%emt 0:00:18]} f4+ {[%emt 0:04:12]} 36. gxf4+ {[%emt 0:00:28]} Kf5 {[%emt 0:00:06]} 37. cxd5 {[%emt 0:01:53]} cxd5 {[%emt 0:00:09]} 38. c3 {[%emt 0:00:14]} g3 {[%emt 0:00:11]} 39. Kf3 {[%emt 0:00:09]} g2 {[%emt 0:00:15]} 40. Kxg2 {[%emt 0:00:10]} Kxf4 {[%emt 0:00:06]} 41. Kf2 {[%emt 0:30:12]} Ke4 {[%emt 0:30:16]} 42. Ke2 {[%emt 0:00:27]} Kf4 {[%emt 0:00:26]} 43. Kd3 {[%emt 0:00:13]} Kf5 {[%emt 0:00:13]} 44. c4 {[%emt 0:00:22]} dxc4+ {[%emt 0:00:18]} 45. Kxc4 {[%emt 0:00:15]} Ke6 {[%emt 0:00:15]} 46. Kb5 {[%emt 0:00:58]} Kd5 {[%emt 0:00:31]} 47. Kxa5 {[%emt 0:00:15]} Kc6 {[%emt 0:01:12]} 48. d5+ {[%emt 0:00:18]} Kc7 {[%emt 0:00:24]} 49. Ka6 {[%emt 0:00:38]} Kb8 {[%emt 0:00:34]} 50. d6 {[%emt 0:00:28]} Kc8 {[%emt 0:00:21]} 51. d7+ {[%emt 0:00:17]} Kc7 {[%emt 0:00:15]} 52. d8=Q+ {[%emt 0:00:18]} Kxd8 {[%emt 0:00:12]} 53. Kb7 {[%emt 0:00:18]} 1-0

[Event "Czech Youth U10 Boys 2024"]
[Site "Kouty nad Desnou"]
[Date "2024.03.12"]
[Round "5.9"]
[White "Krivka, Lukas"]
[Black "Cerny, Ren"]
[Result "1-0"]
[ECO "A45"]
[WhiteElo "1567"]
[BlackElo "1623"]
[Annotator "NA RC"]
[PlyCount "95"]
[EventDate "2024.03.10"]
[EventType "swiss"]
[EventCountry "CZE"]
[SourceTitle "playchess.com"]
[Source "ChessBase"]
[SourceQuality "1"]
[TimeControl "40/5400+30:1800+30"]

1. d4 {[%emt 0:00:10]} Nf6 {[%emt 0:00:10]} 2. Nc3 {[%emt 0:00:30]} d5 {[%emt 0:00:24]} 3. Bf4 {[%emt 0:00:28]} a6 {[%emt 0:00:58]} 4. e3 {[%emt 0:01:53]} e6 {[%emt 0:00:36]} 5. a3 {[%emt 0:01:34]} c5 {[%emt 0:00:49]} 6. h3 {[%emt 0:05:50]} Nc6 {[%emt 0:02:01]} 7. Nf3 {[%emt 0:01:59]} b5 {[%emt 0:01:42]} 8. Bxb5 {[%emt 0:16:16]} axb5 {[%emt 0:02:01]} 9. Nxb5 {[%emt 0:00:42]} Kd7 {[%emt 0:09:18]} 10. Bc7 {[%emt 0:10:20]} Qe8 {[%emt 0:04:05]} 11. Ne5+ {[%emt 0:04:18]} Nxe5 {[%emt 0:01:15]} 12. Bxe5 {[%emt 0:03:11]} Qd8 {[%emt 0:05:47]} 13. Bc7 {[%emt 0:06:27]} Qe8 {[%emt 0:02:08]} 14. dxc5 {[%emt 0:10:14]} Bxc5 {[%emt 0:02:08]} 15. b4 {[%emt 0:00:35]} Bf8 {[%emt 0:04:55]} 16. Be5 {[%emt 0:08:07]} Qd8 {[%emt 0:01:28]} 17. Qd4 {[%emt 0:00:54]} Rg8 {[%emt 0:05:14]} 18. Nc7 {[%emt 0:04:38]} Ra4 {[%emt 0:04:11]} 19. Nb5 {[%emt 0:04:17]} Ne4 {[%emt 0:02:11]} 20. f3 {[%emt 0:02:10]} Nd6 {[%emt 0:01:18]} 21. Bxd6 {[%emt 0:00:27]} Bxd6 {[%emt 0:00:22]} 22. Nxd6 {[%emt 0:00:03]} Kxd6 {[%emt 0:00:20]} 23. Qc5+ {[%emt 0:00:11]} Kd7 {[%emt 0:01:05]} 24. Qb5+ {[%emt 0:01:04]} Ke7 {[%emt 0:00:32]} 25. Qxa4 {[%emt 0:00:15]} Qb6 {[%emt 0:00:44]} 26. Qb3 {[%emt 0:01:07]} Ba6 {[%emt 0:00:22]} 27. Kf2 {[%emt 0:08:14]} Rc8 {[%emt 0:01:04]} 28. Rhc1 {[%emt 0:01:33]} Rc4 {[%emt 0:01:24]} 29. c3 {[%emt 0:01:26]} Rf4 {[%emt 0:02:50]} 30. b5 {[%emt 0:01:45]} Rc4 {[%emt 0:01:59]} 31. a4 {[%emt 0:00:47]} f5 {[%emt 0:02:35]} 32. Qa3+ {[%emt 0:00:15]} Kf7 {[%emt 0:00:57]} 33. bxa6 {[%emt 0:00:48]} Qxa6 {[%emt 0:02:13]} 34. Qa2 {[%emt 0:02:03]} Qa7 {[%emt 0:00:22]} 35. a5 {[%emt 0:00:43]} f4 {[%emt 0:00:29]} 36. Qd2 {[%emt 0:00:34]} Kf6 {[%emt 0:01:11]} 37. Ke2 {[%emt 0:00:17]} g5 {[%emt 0:01:21]} 38. exf4 {[%emt 0:00:50]} gxf4 {[%emt 0:00:12]} 39. Rcb1 {[%emt 0:01:34]} Qg7 {[%emt 0:04:03]} 40. Kd1 {[%emt 0:01:06]} Qa7 {[%emt 0:00:51]} 41. Ke2 {[%emt 0:30:22]} Qg7 {[%emt 0:30:14]} 42. Rg1 {[%emt 0:00:40]} Qc7 {[%emt 0:01:25]} 43. Rgc1 {[%emt 0:00:37]} Qg7 {[%emt 0:00:13]} 44. Kf1 {[%emt 0:00:21]} Qa7 {[%emt 0:00:22]} 45. Qf2 {[%emt 0:00:11]} Qa6 {[%emt 0:00:32]} 46. Qb6 {[%emt 0:00:10]} Rc6+ {[%emt 0:01:00]} 47. Qxa6 {[%emt 0:00:05]} Rxa6 {[%emt 0:00:06]} 48. c4 1-0

[Event "Czech Youth U10 Boys 2024"]
[Site "Kouty nad Desnou"]
[Date "2024.03.12"]
[Round "5.11"]
[White "Hroch, Pavel"]
[Black "Kobersky, Matyas"]
[Result "0-1"]
[ECO "B90"]
[WhiteElo "1495"]
[BlackElo "1405"]
[Annotator "NA RC"]
[PlyCount "53"]
[EventDate "2024.03.10"]
[EventType "swiss"]
[EventCountry "CZE"]
[SourceTitle "playchess.com"]
[Source "ChessBase"]
[SourceQuality "1"]
[TimeControl "40/5400+30:1800+30"]

1. e4 {[%emt 0:00:19]} c5 {[%emt 0:00:42]} 2. Nf3 {[%emt 0:00:10]} d6 {[%emt 0:00:49]} 3. d4 {[%emt 0:00:09]} cxd4 {[%emt 0:00:32]} 4. Nxd4 {[%emt 0:00:09]} Nf6 {[%emt 0:00:29]} 5. Nc3 {[%emt 0:00:12]} a6 {[%emt 0:00:30]} 6. f3 {[%emt 0:00:13]} e5 {[%emt 0:02:03]} 7. Nb3 {[%emt 0:00:10]} Nc6 {[%emt 0:02:41]} 8. Be3 {[%emt 0:00:12]} Be6 {[%emt 0:00:40]} 9. Qd2 {[%emt 0:00:14]} Be7 {[%emt 0:01:00]} 10. O-O-O {[%emt 0:00:22]} Qc7 {[%emt 0:00:37]} 11. Kb1 {[%emt 0:00:51]} O-O {[%emt 0:02:22]} 12. g4 {[%emt 0:00:09]} b5 {[%emt 0:14:59]} 13. Bd3 {[%emt 0:00:24]} d5 {[%emt 0:04:57]} 14. h4 d4 {[%emt 0:01:42]} 15. Bh6 {[%emt 0:05:33]} dxc3 {[%emt 0:07:22]} 16. Qg5 {[%emt 0:00:26]} Ne8 {[%emt 0:00:37]} 17. Qe3 {[%emt 0:00:30]} gxh6 {[%emt 0:01:39]} 18. Qxh6 {[%emt 0:00:26]} Bxb3 {[%emt 0:02:46]} 19. cxb3 {[%emt 0:00:45]} Qd6 {[%emt 0:00:43]} 20. Qxd6 {[%emt 0:01:30]} Bxd6 {[%emt 0:00:41]} 21. bxc3 {[%emt 0:01:50]} Nf6 {[%emt 0:02:18]} 22. g5 {[%emt 0:00:48]} Nh5 {[%emt 0:00:40]} 23. Rhg1 {[%emt 0:01:47]} Nf4 {[%emt 0:00:51]} 24. Bf1 {[%emt 0:00:16]} Bc5 {[%emt 0:01:31]} 25. Rh1 {[%emt 0:00:40]} Rad8 {[%emt 0:01:05]} 26. Rxd8 {[%emt 0:01:58]} Rxd8 {[%emt 0:00:34]} 27. b4 {[%emt 0:01:06]} 0-1

[Event "Czech Youth U10 Boys 2024"]
[Site "Kouty nad Desnou"]
[Date "2024.03.13"]
[Round "6.1"]
[White "Vydra, David"]
[Black "Bartak, Tobias"]
[Result "1/2-1/2"]
[ECO "B01"]
[WhiteElo "1583"]
[BlackElo "1545"]
[Annotator "NA"]
[PlyCount "137"]
[EventDate "2024.03.10"]
[EventType "swiss"]
[EventCountry "CZE"]
[SourceTitle "playchess.com"]
[Source "ChessBase"]
[SourceQuality "1"]
[TimeControl "40/5400+30:1800+30"]

1. e4 {[%emt 0:00:02]} d5 {[%emt 0:00:12]} 2. exd5 {[%emt 0:00:12]} Qxd5 {[%emt 0:00:12]} 3. Nc3 {[%emt 0:00:08]} Qa5 {[%emt 0:00:25]} 4. Bc4 {[%emt 0:01:20]} Nf6 {[%emt 0:01:10]} 5. Nf3 {[%emt 0:06:27]} c6 {[%emt 0:03:08]} 6. O-O {[%emt 0:06:21]} Bf5 {[%emt 0:06:01]} 7. d4 {[%emt 0:03:35]} e6 {[%emt 0:03:18]} 8. Qe2 {[%emt 0:08:44]} Be7 {[%emt 0:06:18]} 9. Nh4 {[%emt 0:07:32]} Nbd7 {[%emt 0:08:30]} 10. Nxf5 {[%emt 0:10:29]} Qxf5 {[%emt 0:01:27]} 11. Bd3 {[%emt 0:18:04]} Qh5 {[%emt 0:05:20]} 12. Qxh5 {[%emt 0:04:24]} Nxh5 {[%emt 0:00:10]} 13. a4 {[%emt 0:00:16]} a5 {[%emt 0:04:02]} 14. f4 {[%emt 0:00:23]} O-O {[%emt 0:00:54]} 15. f5 {[%emt 0:01:30]} e5 {[%emt 0:00:31]} 16. dxe5 {[%emt 0:02:58]} Nxe5 {[%emt 0:00:15]} 17. Be2 {[%emt 0:00:08]} Nf6 {[%emt 0:00:34]} 18. Bf4 {[%emt 0:00:13]} Ned7 {[%emt 0:01:25]} 19. Kh1 {[%emt 0:01:18]} Nb6 {[%emt 0:01:35]} 20. Bf3 {[%emt 0:02:20]} Nfd5 {[%emt 0:01:48]} 21. Nxd5 {[%emt 0:00:10]} Nxd5 {[%emt 0:00:07]} 22. Bxd5 {[%emt 0:00:42]} cxd5 {[%emt 0:02:23]} 23. Rad1 {[%emt 0:00:10]} Rfd8 {[%emt 0:01:25]} 24. Be5 {[%emt 0:00:41]} Rac8 {[%emt 0:00:50]} 25. c3 {[%emt 0:00:11]} f6 {[%emt 0:00:26]} 26. Bd4 {[%emt 0:00:12]} Bc5 {[%emt 0:00:57]} 27. h3 {[%emt 0:00:58]} Bxd4 {[%emt 0:00:34]} 28. Rxd4 {[%emt 0:00:06]} Rc4 {[%emt 0:00:04]} 29. Rfd1 {[%emt 0:00:15]} Rxd4 {[%emt 0:05:29]} 30. Rxd4 {[%emt 0:00:10]} Kf7 {[%emt 0:00:17]} 31. c4 {[%emt 0:00:10]} Ke7 {[%emt 0:00:04]} 32. cxd5 {[%emt 0:00:25]} Kd6 {[%emt 0:00:09]} 33. Rg4 {[%emt 0:00:23]} Rd7 {[%emt 0:00:15]} 34. Kh2 {[%emt 0:01:19]} Ke5 {[%emt 0:00:14]} 35. Rc4 {[%emt 0:00:33]} Kxf5 {[%emt 0:01:15]} 36. Rc5 {[%emt 0:00:09]} Ke5 {[%emt 0:02:14]} 37. Rxa5 {[%emt 0:00:13]} Rxd5 {[%emt 0:00:03]} 38. Ra7 {[%emt 0:00:09]} Rd7 {[%emt 0:00:10]} 39. Kg3 {[%emt 0:01:15]} Rd3+ {[%emt 0:01:01]} 40. Kh2 {[%emt 0:00:21]} Rb3 {[%emt 0:00:04]} 41. Ra8 {[%emt 0:30:21]} Kf5 {[%emt 0:30:29]} 42. Ra5+ {[%emt 0:01:25]} Ke4 {[%emt 0:02:01]} 43. Ra8 {[%emt 0:00:36]} Kf5 {[%emt 0:01:15]} 44. Ra5+ {[%emt 0:00:37]} Kg6 {[%emt 0:00:04]} 45. Ra7 {[%emt 0:02:24]} Rxb2 {[%emt 0:00:33]} 46. a5 {[%emt 0:00:05]} Ra2 {[%emt 0:00:36]} 47. Rxb7 {[%emt 0:00:14]} Rxa5 {[%emt 0:00:04]} 48. Kg3 {[%emt 0:01:07]} h5 {[%emt 0:01:06]} 49. h4 {[%emt 0:00:34]} Kh6 {[%emt 0:01:00]} 50. Kh2 {[%emt 0:00:19]} Ra4 {[%emt 0:00:38]} 51. g3 {[%emt 0:00:09]} Ra6 {[%emt 0:00:08]} 52. Rb8 {[%emt 0:02:32]} g6 {[%emt 0:00:18]} 53. Rh8+ {[%emt 0:00:21]} Kg7 {[%emt 0:00:04]} 54. Rb8 {[%emt 0:00:06]} g5 {[%emt 0:00:22]} 55. hxg5 {[%emt 0:00:15]} fxg5 {[%emt 0:00:10]} 56. Rb5 {[%emt 0:00:13]} Kg6 {[%emt 0:00:06]} 57. Kh3 {[%emt 0:00:41]} Kf6 {[%emt 0:01:07]} 58. Rb8 {[%emt 0:00:45]} g4+ {[%emt 0:00:38]} 59. Kh4 {[%emt 0:00:59]} Ra3 {[%emt 0:00:56]} 60. Rb6+ {[%emt 0:00:46]} Kf5 {[%emt 0:00:57]} 61. Rb5+ {[%emt 0:00:26]} Kg6 {[%emt 0:00:16]} 62. Rg5+ {[%emt 0:00:27]} Kh6 {[%emt 0:00:45]} 63. Rxh5+ {[%emt 0:00:11]} Kg6 {[%emt 0:00:07]} 64. Rg5+ {[%emt 0:00:08]} Kf6 {[%emt 0:00:19]} 65. Rxg4 {[%emt 0:00:13]} Ra5 {[%emt 0:00:12]} 66. Rf4+ {[%emt 0:00:33]} Kg6 {[%emt 0:00:09]} 67. g4 {[%emt 0:00:47]} Rb5 {[%emt 0:00:36]} 68. Ra4 {[%emt 0:00:32]} Rb6 {[%emt 0:00:57]} 69. Ra5 {[%emt 0:01:01]} 1/2-1/2

[Event "Czech Youth U10 Boys 2024"]
[Site "Kouty nad Desnou"]
[Date "2024.03.13"]
[Round "6.2"]
[White "Trejbal, Jindrich"]
[Black "Vo, Daniel"]
[Result "0-1"]
[ECO "B22"]
[WhiteElo "1947"]
[BlackElo "1629"]
[Annotator "RC"]
[PlyCount "94"]
[EventDate "2024.03.10"]
[EventType "swiss"]
[EventCountry "CZE"]
[SourceTitle "playchess.com"]
[Source "ChessBase"]
[SourceQuality "1"]
[TimeControl "40/5400+30:1800+30"]

1. e4 {[%emt 0:00:04]} c5 {[%emt 0:00:13]} 2. c3 {[%emt 0:00:07]} Nf6 {[%emt 0:00:12]} 3. e5 {[%emt 0:00:07]} Nd5 {[%emt 0:00:11]} 4. d4 {[%emt 0:00:12]} cxd4 {[%emt 0:00:34]} 5. cxd4 {[%emt 0:01:07]} e6 {[%emt 0:00:30]} 6. Nf3 {[%emt 0:10:57]} Nc6 {[%emt 0:01:39]} 7. Bc4 {[%emt 0:01:37]} Nb6 {[%emt 0:00:27]} 8. Bd3 {[%emt 0:03:39]} d6 {[%emt 0:07:20]} 9. O-O {[%emt 0:08:31]} dxe5 {[%emt 0:02:46]} 10. dxe5 {[%emt 0:02:51]} Be7 {[%emt 0:01:17]} 11. Nc3 {[%emt 0:03:16]} O-O {[%emt 0:00:54]} 12. Be3 {[%emt 0:07:49]} Qc7 {[%emt 0:06:43]} 13. Nb5 {[%emt 0:09:09]} Qb8 {[%emt 0:06:31]} 14. Bxb6 {[%emt 0:12:25]} axb6 {[%emt 0:00:17]} 15. Re1 {[%emt 0:01:19]} f6 {[%emt 0:07:53]} 16. exf6 {[%emt 0:07:15]} Bxf6 {[%emt 0:01:26]} 17. Qc2 {[%emt 0:04:40]} h6 {[%emt 0:05:12]} 18. a3 {[%emt 0:02:09]} e5 {[%emt 0:06:46]} 19. Bc4+ {[%emt 0:04:30]} Kh8 {[%emt 0:03:21]} 20. Rad1 {[%emt 0:01:32]} Bg4 {[%emt 0:03:35]} 21. Nd6 {[%emt 0:02:02]} Qc7 {[%emt 0:03:40]} 22. Qg6 {[%emt 0:01:30]} Bxf3 {[%emt 0:01:56]} 23. gxf3 {[%emt 0:00:52]} Ne7 {[%emt 0:02:20]} 24. Nf7+ {[%emt 0:01:10]} Rxf7 {[%emt 0:01:57]} 25. Qxf7 {[%emt 0:00:22]} Qc5 {[%emt 0:11:15]} 26. Re2 {[%emt 0:06:58]} Nf5 {[%emt 0:03:57]} 27. Red2 {[%emt 0:01:17]} Nd4 {[%emt 0:02:05]} 28. Kg2 {[%emt 0:01:00]} Rd8 {[%emt 0:03:51]} 29. Ba2 {[%emt 0:02:33]} Qc6 {[%emt 0:01:11]} 30. Qh5 {[%emt 0:01:05]} Rf8 {[%emt 0:05:15]} 31. Rd3 {[%emt 0:01:12]} e4 {[%emt 0:02:53]} 32. Rxd4 {[%emt 0:01:06]} exf3+ {[%emt 0:01:17]} 33. Kh3 {[%emt 0:00:28]} Bxd4 {[%emt 0:00:35]} 34. Rxd4 {[%emt 0:00:03]} Qc1 {[%emt 0:01:34]} 35. Qg4 {[%emt 0:01:19]} Qf1+ {[%emt 0:02:07]} 36. Kg3 {[%emt 0:00:10]} Qg2+ {[%emt 0:00:44]} 37. Kh4 {[%emt 0:00:06]} Qxh2+ {[%emt 0:00:45]} 38. Qh3 {[%emt 0:00:09]} Qxf2+ {[%emt 0:00:08]} 39. Kg4 {[%emt 0:00:56]} Qxd4+ {[%emt 0:00:18]} 40. Kg3 {[%emt 0:00:03]} f2 {[%emt 0:00:22]} 41. Qf1 {[%emt 0:30:09]} Qe3+ {[%emt 0:30:40]} 42. Kg2 {[%emt 0:00:15]} Rf3 {[%emt 0:00:31]} 43. Be6 {[%emt 0:00:53]} Rg3+ {[%emt 0:00:34]} 44. Kh2 {[%emt 0:00:08]} Qf4 {[%emt 0:00:12]} 45. Qc4 {[%emt 0:00:37]} f1=N+ {[%emt 0:00:51]} 46. Qxf1 {[%emt 0:00:29]} Qxf1 {[%emt 0:00:21]} 47. Kxg3 {[%emt 0:00:06]} Qe1+ 0-1